[Event "45th National Sub Junior 2019"]
[Site "Tiruchengode"]
[Date "2019.07.12"]
[Round "6.10"]
[White "Mahitosh Dey"]
[Black "Rithvik Raja M"]
[Result "1-0"]
[ECO "A01"]
[WhiteElo "1955"]
[BlackElo "1766"]
[Annotator "NA"]
[PlyCount "67"]
[EventDate "2019.07.09"]
[EventCountry "IND"]
[SourceTitle "playchess.com"]
[Source "ChessBase"]
[SourceQuality "1"]
[TimeControl "5400+30"]

1. g3 {[%emt 0:00:00]} e5 {[%emt 0:00:00]} 2. Bg2 {[%emt 0:00:00]} d5 {[%emt 0:01:12]} 3. b3 {[%emt 0:00:19]} Nc6 {[%emt 0:02:10]} 4. Bb2 {[%emt 0:00:07]} Nf6 {[%emt 0:00:48]} 5. d3 {[%emt 0:00:23]} Bc5 {[%emt 0:05:08]} 6. e3 {[%emt 0:01:14]} Bb6 {[%emt 0:05:31]} 7. Ne2 {[%emt 0:00:09]} h5 {[%emt 0:01:06]} 8. d4 {[%emt 0:03:07]} e4 {[%emt 0:01:42]} 9. Nd2 {[%emt 0:01:00]} h4 {[%emt 0:04:25]} 10. h3 {[%emt 0:09:36]} hxg3 {[%emt 0:04:05]} 11. fxg3 {[%emt 0:00:13]} Nh5 {[%emt 0:00:27]} 12. Nf1 {[%emt 0:01:19]} Qg5 {[%emt 0:06:13]} 13. Qd2 {[%emt 0:00:42]} Rh6 {[%emt 0:00:42]} 14. O-O-O {[%emt 0:03:41]} Rf6 {[%emt 0:01:06]} 15. Nf4 {[%emt 0:04:13]} Nxf4 {[%emt 0:02:25]} 16. gxf4 {[%emt 0:00:25]} Qh4 {[%emt 0:01:32]} 17. a3 {[%emt 0:01:41]} g5 {[%emt 0:00:40]} 18. c4 {[%emt 0:03:38]} Na5 {[%emt 0:02:27]} 19. Qc2 {[%emt 0:01:27]} c6 {[%emt 0:01:12]} 20. Bxe4 {[%emt 0:01:44]} gxf4 {[%emt 0:03:08]} 21. cxd5 {[%emt 0:01:47]} fxe3 {[%emt 0:03:12]} 22. Nxe3 {[%emt 0:13:49]} Rf2 {[%emt 0:01:01]} 23. Qd3 {[%emt 0:04:35]} Nxb3+ {[%emt 0:00:27]} 24. Qxb3 {[%emt 0:00:07]} Qxe4 {[%emt 0:00:31]} 25. Rhe1 {[%emt 0:09:32]} Kd8 {[%emt 0:04:01]} 26. Qb4 {[%emt 0:19:05]} cxd5 {[%emt 0:05:37]} 27. Qf8+ {[%emt 0:00:24]} Kc7 {[%emt 0:00:41]} 28. Rd3 {[%emt 0:00:41]} Qxd3 {[%emt 0:02:58]} 29. Nxd5+ {[%emt 0:00:09]} Kd7 {[%emt 0:01:46]} 30. Qe7+ {[%emt 0:00:35]} Kc6 {[%emt 0:00:05]} 31. Nb4+ {[%emt 0:00:02]} Kb5 {[%emt 0:00:08]} 32. Nxd3 {[%emt 0:00:14]} Rg2 {[%emt 0:00:08]} 33. Re5+ {[%emt 0:00:19]} Ka6 {[%emt 0:00:05]} 34. Nb4# {[%emt 0:00:02]} 1-0

[Event "45th National Sub Junior 2019"]
[Site "Tiruchengode"]
[Date "2019.07.13"]
[Round "7.1"]
[White "Pranav, V."]
[Black "Raja Rithvik R"]
[Result "1/2-1/2"]
[ECO "C83"]
[WhiteElo "2312"]
[BlackElo "2357"]
[Annotator "ChessBase"]
[PlyCount "96"]
[EventDate "2019.07.09"]
[EventCountry "IND"]
[SourceTitle "playchess.com"]
[Source "ChessBase"]
[SourceQuality "1"]
[TimeControl "5400+30"]

1. e4 {[%emt 0:00:00]} e5 {[%emt 0:00:00]} 2. Nf3 {[%emt 0:00:00]} Nc6 {[%emt 0:00:00]} 3. Bb5 {[%emt 0:00:00]} a6 {[%emt 0:00:00]} 4. Ba4 {[%emt 0:00:04]} Nf6 {[%emt 0:00:01]} 5. O-O {[%emt 0:00:14]} Nxe4 {[%emt 0:00:09]} 6. d4 {[%emt 0:00:33]} b5 {[%emt 0:00:04]} 7. Bb3 {[%emt 0:00:08]} d5 {[%emt 0:00:05]} 8. dxe5 {[%emt 0:00:16]} Be6 {[%emt 0:00:06]} 9. Nbd2 {[%emt 0:00:24]} Nc5 {[%emt 0:00:07]} 10. c3 {[%emt 0:00:14]} Be7 {[%emt 0:00:07]} 11. Bc2 {[%emt 0:01:15]} d4 {[%emt 0:00:08]} 12. Nb3 {[%emt 0:02:20]} d3 {[%emt 0:00:07]} 13. Bb1 {[%emt 0:06:25]} Nxb3 {[%emt 0:00:16]} 14. axb3 {[%emt 0:00:08]} Bf5 {[%emt 0:00:04]} 15. Be3 {[%emt 0:00:53]} O-O {[%emt 0:00:08]} 16. Bd4 {[%emt 0:04:58]} Qd5 {[%emt 0:00:08]} 17. Re1 {[%emt 0:06:07]} d2 {[%emt 0:00:43]} 18. Qxd2 {[%emt 0:05:10]} Bxb1 {[%emt 0:00:20]} 19. Raxb1 {[%emt 0:00:10]} Qxb3 {[%emt 0:00:12]} 20. Qe3 {[%emt 0:03:35]} Rfd8 {[%emt 0:13:31]} 21. h3 {[%emt 0:04:23]} Qe6 {[%emt 0:06:54]} 22. b4 {[%emt 0:10:49]} a5 {[%emt 0:07:07]} 23. bxa5 {[%emt 0:10:02]} Rxa5 {[%emt 0:00:35]} 24. Bc5 {[%emt 0:00:14]} Bxc5 {[%emt 0:18:31]} 25. Qxc5 {[%emt 0:00:09]} Rd5 {[%emt 0:03:36]} 26. Qe3 {[%emt 0:00:13]} h6 {[%emt 0:00:53]} 27. Rbd1 {[%emt 0:07:14]} Ra3 {[%emt 0:15:40]} 28. Qc1 {[%emt 0:03:23]} Ra8 {[%emt 0:04:58]} 29. Rxd5 {[%emt 0:04:36]} Qxd5 {[%emt 0:00:17]} 30. e6 {[%emt 0:00:12]} fxe6 {[%emt 0:06:35]} 31. Qf4 {[%emt 0:00:07]} e5 {[%emt 0:04:09]} 32. Qg4 {[%emt 0:02:19]} Rf8 {[%emt 0:01:27]} 33. Nh4 {[%emt 0:03:56]} Ne7 {[%emt 0:05:13]} 34. Qe2 {[%emt 0:00:52]} Qc5 {[%emt 0:03:23]} 35. Nf3 {[%emt 0:01:29]} Ng6 {[%emt 0:02:01]} 36. Qe4 {[%emt 0:06:38]} Rf6 {[%emt 0:01:20]} 37. Re3 {[%emt 0:00:59]} Qc6 {[%emt 0:02:11]} 38. Qg4 {[%emt 0:03:34]} Rf4 {[%emt 0:01:37]} 39. Nxe5 {[%emt 0:01:09]} Rxg4 {[%emt 0:00:23]} 40. Nxc6 {[%emt 0:00:08]} Rc4 {[%emt 0:00:13]} 41. Na5 {[%emt 0:05:10]} Rc5 {[%emt 0:01:07]} 42. Nb3 {[%emt 0:02:20]} Rc4 {[%emt 0:00:10]} 43. g3 {[%emt 0:01:40]} b4 {[%emt 0:01:23]} 44. cxb4 {[%emt 0:00:51]} Rxb4 {[%emt 0:00:02]} 45. Kg2 {[%emt 0:01:12]} Rc4 {[%emt 0:00:26]} 46. Na5 {[%emt 0:01:07]} Rc2 {[%emt 0:00:14]} 47. Nb3 {[%emt 0:00:23]} Rc4 {[%emt 0:00:30]} 48. Na5 {[%emt 0:00:12]} Rc2 {[%emt 0:00:04]} 1/2-1/2

[Event "45th National Sub Junior 2019"]
[Site "Tiruchengode"]
[Date "2019.07.13"]
[Round "7.2"]
[White "Sanket Chakravarty"]
[Black "Rohith Krishna S"]
[Result "1/2-1/2"]
[ECO "A14"]
[WhiteElo "2107"]
[BlackElo "2312"]
[Annotator "ChessBase"]
[PlyCount "60"]
[EventDate "2019.07.09"]
[EventCountry "IND"]
[SourceTitle "playchess.com"]
[Source "ChessBase"]
[SourceQuality "1"]
[TimeControl "5400+30"]

1. c4 {[%emt 0:00:00]} e6 {[%emt 0:00:00]} 2. g3 {[%emt 0:00:00]} d5 {[%emt 0:00:04]} 3. Bg2 {[%emt 0:00:00]} Nf6 {[%emt 0:00:08]} 4. Nf3 {[%emt 0:00:00]} Be7 {[%emt 0:00:06]} 5. O-O {[%emt 0:00:10]} O-O {[%emt 0:00:50]} 6. b3 {[%emt 0:00:03]} b6 {[%emt 0:03:03]} 7. Bb2 {[%emt 0:00:06]} Bb7 {[%emt 0:00:07]} 8. cxd5 {[%emt 0:00:04]} Nxd5 {[%emt 0:01:17]} 9. d4 {[%emt 0:00:11]} c5 {[%emt 0:00:08]} 10. Re1 {[%emt 0:00:23]} cxd4 {[%emt 0:01:10]} 11. Qxd4 {[%emt 0:12:29]} Bf6 {[%emt 0:00:33]} 12. Qd2 {[%emt 0:00:04]} Bxb2 {[%emt 0:00:26]} 13. Qxb2 {[%emt 0:00:10]} Qf6 {[%emt 0:00:10]} 14. Qxf6 {[%emt 0:00:31]} Nxf6 {[%emt 0:00:06]} 15. Nbd2 {[%emt 0:01:14]} Nbd7 {[%emt 0:00:35]} 16. Nc4 {[%emt 0:00:43]} Nc5 {[%emt 0:05:34]} 17. Rac1 {[%emt 0:12:14]} Rfd8 {[%emt 0:04:49]} 18. Nfe5 {[%emt 0:09:49]} Bxg2 {[%emt 0:01:45]} 19. Kxg2 {[%emt 0:00:03]} Kf8 {[%emt 0:03:51]} 20. b4 {[%emt 0:04:15]} Nb7 {[%emt 0:02:28]} 21. Nc6 {[%emt 0:03:42]} Rdc8 {[%emt 0:00:14]} 22. N4e5 {[%emt 0:01:59]} Rc7 {[%emt 0:10:24]} 23. e4 {[%emt 0:07:12]} Nd6 {[%emt 0:09:07]} 24. f3 {[%emt 0:02:00]} Nfe8 {[%emt 0:01:05]} 25. a4 {[%emt 0:02:15]} b5 {[%emt 0:04:09]} 26. axb5 {[%emt 0:01:20]} Nxb5 {[%emt 0:00:29]} 27. Rc5 {[%emt 0:01:39]} Nbd6 {[%emt 0:00:16]} 28. Nd4 {[%emt 0:03:05]} Rb7 {[%emt 0:01:43]} 29. b5 {[%emt 0:01:50]} Rc8 {[%emt 0:02:13]} 30. Nec6 {[%emt 0:08:46]} Rb6 {[%emt 0:48:10]} 1/2-1/2

[Event "45th National Sub Junior 2019"]
[Site "Tiruchengode"]
[Date "2019.07.13"]
[Round "7.3"]
[White "Rathneesh R"]
[Black "Samant Aditya S"]
[Result "1/2-1/2"]
[ECO "B67"]
[WhiteElo "2226"]
[BlackElo "2296"]
[Annotator "ChessBase"]
[PlyCount "81"]
[EventDate "2019.07.09"]
[EventCountry "IND"]
[SourceTitle "playchess.com"]
[Source "ChessBase"]
[SourceQuality "1"]
[TimeControl "5400+30"]

1. e4 {[%emt 0:00:00]} c5 {[%emt 0:00:00]} 2. Nf3 {[%emt 0:00:01]} d6 {[%emt 0:00:00]} 3. d4 {[%emt 0:00:05]} cxd4 {[%emt 0:00:00]} 4. Nxd4 {[%emt 0:00:05]} Nf6 {[%emt 0:00:00]} 5. Nc3 {[%emt 0:00:04]} Nc6 {[%emt 0:00:00]} 6. Bg5 {[%emt 0:00:30]} e6 {[%emt 0:00:04]} 7. Qd2 {[%emt 0:00:25]} a6 {[%emt 0:00:08]} 8. O-O-O {[%emt 0:01:32]} Bd7 {[%emt 0:00:10]} 9. f4 {[%emt 0:00:10]} b5 {[%emt 0:00:07]} 10. Bxf6 {[%emt 0:00:06]} gxf6 {[%emt 0:00:08]} 11. Kb1 {[%emt 0:02:27]} Qb6 {[%emt 0:00:28]} 12. Nxc6 {[%emt 0:00:23]} Bxc6 {[%emt 0:00:08]} 13. f5 {[%emt 0:00:45]} b4 {[%emt 0:00:09]} 14. Ne2 {[%emt 0:00:14]} e5 {[%emt 0:00:05]} 15. Ng3 {[%emt 0:00:50]} h5 {[%emt 0:00:09]} 16. h4 {[%emt 0:00:42]} Qc5 {[%emt 0:00:11]} 17. Bd3 {[%emt 0:02:14]} Bh6 {[%emt 0:00:11]} 18. Qe2 {[%emt 0:00:10]} Qe3 {[%emt 0:00:13]} 19. Nxh5 {[%emt 0:00:46]} Ke7 {[%emt 0:00:08]} 20. Qf1 {[%emt 0:01:05]} Bxe4 {[%emt 0:00:10]} 21. Rg1 {[%emt 0:00:04]} b3 {[%emt 0:15:35]} 22. axb3 {[%emt 0:00:34]} Rhc8 {[%emt 0:19:38]} 23. g4 {[%emt 0:15:52]} Rxc2 {[%emt 0:05:48]} 24. Kxc2 {[%emt 0:00:05]} Rc8+ {[%emt 0:00:03]} 25. Kb1 {[%emt 0:00:04]} Rc1+ {[%emt 0:00:08]} 26. Ka2 {[%emt 0:00:02]} Bxd3 {[%emt 0:01:39]} 27. Qe1 {[%emt 0:00:35]} Qxe1 {[%emt 0:12:40]} 28. Rgxe1 {[%emt 0:02:05]} Rxd1 {[%emt 0:00:05]} 29. Rxd1 {[%emt 0:00:02]} e4 {[%emt 0:01:02]} 30. Rg1 {[%emt 0:00:19]} Be3 {[%emt 0:02:14]} 31. Rg2 {[%emt 0:09:29]} Bc1 {[%emt 0:23:01]} 32. g5 {[%emt 0:28:51]} fxg5 {[%emt 0:01:03]} 33. hxg5 {[%emt 0:02:12]} e3 {[%emt 0:00:56]} 34. f6+ {[%emt 0:02:06]} Kd7 {[%emt 0:07:48]} 35. Nf4 {[%emt 0:02:40]} Be4 {[%emt 0:02:03]} 36. g6 {[%emt 0:11:40]} Bxg6 {[%emt 0:03:35]} 37. Nxg6 {[%emt 0:01:20]} fxg6 {[%emt 0:00:05]} 38. Kb1 {[%emt 0:03:07]} Bd2 {[%emt 0:00:06]} 39. Kc2 {[%emt 0:00:20]} Ke6 {[%emt 0:00:47]} 40. Rxg6 {[%emt 0:00:17]} Kf7 {[%emt 0:00:48]} 41. Rh6 {[%emt 0:03:41]} 1/2-1/2

[Event "45th National Sub Junior 2019"]
[Site "Tiruchengode"]
[Date "2019.07.13"]
[Round "7.4"]
[White "Aaryan Varshney"]
[Black "Ilamparthi A R"]
[Result "1-0"]
[ECO "E99"]
[WhiteElo "2284"]
[BlackElo "2036"]
[Annotator "ChessBase"]
[PlyCount "71"]
[EventDate "2019.07.09"]
[EventCountry "IND"]
[SourceTitle "playchess.com"]
[Source "ChessBase"]
[SourceQuality "1"]
[TimeControl "5400+30"]

1. d4 {[%emt 0:00:00]} Nf6 {[%emt 0:00:00]} 2. Nf3 {[%emt 0:00:00]} g6 {[%emt 0:00:05]} 3. c4 {[%emt 0:00:20]} Bg7 {[%emt 0:00:05]} 4. Nc3 {[%emt 0:00:06]} O-O {[%emt 0:00:06]} 5. e4 {[%emt 0:00:03]} d6 {[%emt 0:00:05]} 6. Be2 {[%emt 0:00:05]} e5 {[%emt 0:00:06]} 7. O-O {[%emt 0:00:04]} Nc6 {[%emt 0:00:04]} 8. d5 {[%emt 0:00:05]} Ne7 {[%emt 0:00:05]} 9. Ne1 {[%emt 0:00:02]} Nd7 {[%emt 0:02:11]} 10. Be3 {[%emt 0:00:08]} f5 {[%emt 0:00:49]} 11. f3 {[%emt 0:00:07]} f4 {[%emt 0:00:04]} 12. Bf2 {[%emt 0:00:02]} g5 {[%emt 0:01:26]} 13. Nd3 {[%emt 0:00:07]} h5 {[%emt 0:01:20]} 14. c5 {[%emt 0:00:43]} Nf6 {[%emt 0:01:13]} 15. Rc1 {[%emt 0:00:28]} Ng6 {[%emt 0:11:40]} 16. cxd6 {[%emt 0:01:34]} cxd6 {[%emt 0:00:12]} 17. Nb5 {[%emt 0:00:47]} g4 {[%emt 0:15:47]} 18. Nc7 {[%emt 0:04:39]} g3 {[%emt 0:08:21]} 19. Nxa8 {[%emt 0:06:11]} gxf2+ {[%emt 0:08:16]} 20. Rxf2 {[%emt 0:04:26]} h4 {[%emt 0:04:30]} 21. Nc7 {[%emt 0:02:38]} h3 {[%emt 0:04:52]} 22. Ne6 {[%emt 0:09:22]} Bxe6 {[%emt 0:00:09]} 23. dxe6 {[%emt 0:00:03]} hxg2 {[%emt 0:00:39]} 24. Qc2 {[%emt 0:02:01]} Nh4 {[%emt 0:02:54]} 25. Ne1 {[%emt 0:04:39]} Nh7 {[%emt 0:04:29]} 26. Nxg2 {[%emt 0:02:54]} Ng5 {[%emt 0:00:28]} 27. Nxh4 {[%emt 0:00:25]} Nh3+ {[%emt 0:00:36]} 28. Kf1 {[%emt 0:00:49]} Qxh4 {[%emt 0:06:27]} 29. Rg2 {[%emt 0:00:49]} Kh8 {[%emt 0:02:36]} 30. Qc7 {[%emt 0:00:51]} Bf6 {[%emt 0:00:51]} 31. Qd7 {[%emt 0:01:26]} Bg5 {[%emt 0:02:15]} 32. Rc8 {[%emt 0:01:13]} Rxc8 {[%emt 0:00:15]} 33. Qxc8+ {[%emt 0:00:04]} Kh7 {[%emt 0:00:06]} 34. e7 {[%emt 0:00:10]} Bxe7 {[%emt 0:00:08]} 35. Qg8+ {[%emt 0:00:14]} Kh6 {[%emt 0:00:05]} 36. Qh8# {[%emt 0:00:38]} 1-0

[Event "45th National Sub Junior 2019"]
[Site "Tiruchengode"]
[Date "2019.07.13"]
[Round "7.5"]
[White "Anadkat Kartavya"]
[Black "Soham Kamotra"]
[Result "1/2-1/2"]
[ECO "B12"]
[WhiteElo "1941"]
[BlackElo "2136"]
[Annotator "ChessBase"]
[PlyCount "122"]
[EventDate "2019.07.09"]
[EventCountry "IND"]
[SourceTitle "playchess.com"]
[Source "ChessBase"]
[SourceQuality "1"]
[TimeControl "5400+30"]

1. e4 {[%emt 0:00:00]} c6 {[%emt 0:00:00]} 2. d4 {[%emt 0:00:00]} d5 {[%emt 0:00:00]} 3. e5 {[%emt 0:00:00]} Bf5 {[%emt 0:00:00]} 4. h4 {[%emt 0:00:00]} h6 {[%emt 0:00:00]} 5. g4 {[%emt 0:00:12]} Be4 {[%emt 0:00:00]} 6. f3 {[%emt 0:01:11]} Bh7 {[%emt 0:00:00]} 7. Bd3 {[%emt 0:08:53]} Bxd3 {[%emt 0:00:05]} 8. Qxd3 {[%emt 0:00:04]} e6 {[%emt 0:00:03]} 9. h5 {[%emt 0:00:40]} c5 {[%emt 0:00:06]} 10. c3 {[%emt 0:00:52]} Nc6 {[%emt 0:00:05]} 11. Ne2 {[%emt 0:07:14]} Qb6 {[%emt 0:04:35]} 12. a3 {[%emt 0:00:26]} Rc8 {[%emt 0:09:58]} 13. Nd2 {[%emt 0:01:05]} Nge7 {[%emt 0:01:10]} 14. f4 {[%emt 0:05:29]} cxd4 {[%emt 0:01:47]} 15. cxd4 {[%emt 0:01:11]} Na5 {[%emt 0:05:03]} 16. Kf2 {[%emt 0:03:51]} g6 {[%emt 0:06:31]} 17. b3 {[%emt 0:09:50]} gxh5 {[%emt 0:01:00]} 18. Rxh5 {[%emt 0:00:17]} Rg8 {[%emt 0:01:36]} 19. Kf3 {[%emt 0:00:42]} Qc7 {[%emt 0:17:12]} 20. Bb2 {[%emt 0:05:11]} Qc2 {[%emt 0:00:30]} 21. Qxc2 {[%emt 0:01:35]} Rxc2 {[%emt 0:00:02]} 22. Bc3 {[%emt 0:00:08]} Nec6 {[%emt 0:00:05]} 23. b4 {[%emt 0:09:59]} Nc4 {[%emt 0:03:36]} 24. Nxc4 {[%emt 0:00:07]} dxc4 {[%emt 0:00:02]} 25. Rc1 {[%emt 0:00:26]} Rxc1 {[%emt 0:01:13]} 26. Nxc1 {[%emt 0:00:02]} b5 {[%emt 0:01:42]} 27. Na2 {[%emt 0:01:03]} a5 {[%emt 0:01:20]} 28. Rh1 {[%emt 0:04:21]} Kd7 {[%emt 0:01:26]} 29. Rb1 {[%emt 0:01:52]} axb4 {[%emt 0:00:42]} 30. Nxb4 {[%emt 0:04:04]} Bxb4 {[%emt 0:00:13]} 31. Bxb4 {[%emt 0:00:13]} Nxd4+ {[%emt 0:00:18]} 32. Ke4 {[%emt 0:00:29]} Nb3 {[%emt 0:04:44]} 33. Kf3 {[%emt 0:11:32]} Rc8 {[%emt 0:07:27]} 34. f5 {[%emt 0:03:11]} Kc6 {[%emt 0:06:16]} 35. Rd1 {[%emt 0:05:54]} Kb6 {[%emt 0:00:42]} 36. Rd6+ {[%emt 0:02:15]} Rc6 {[%emt 0:00:01]} 37. fxe6 {[%emt 0:04:50]} fxe6 {[%emt 0:01:06]} 38. Ke3 {[%emt 0:01:48]} Nc5 {[%emt 0:03:44]} 39. Kd4 {[%emt 0:02:43]} Rxd6+ {[%emt 0:07:06]} 40. exd6 {[%emt 0:00:02]} Nd3 {[%emt 0:00:09]} 41. Bd2 {[%emt 0:01:52]} Kc6 {[%emt 0:00:53]} 42. Bxh6 {[%emt 0:01:37]} e5+ {[%emt 0:01:04]} 43. Kc3 {[%emt 0:01:16]} Nf2 {[%emt 0:03:35]} 44. a4 {[%emt 0:01:11]} bxa4 {[%emt 0:03:43]} 45. Kxc4 {[%emt 0:00:17]} Nxg4 {[%emt 0:00:05]} 46. Bg5 {[%emt 0:01:11]} Nf2 {[%emt 0:00:50]} 47. Kb4 {[%emt 0:00:35]} Ne4 {[%emt 0:00:06]} 48. Be3 {[%emt 0:00:42]} Nxd6 {[%emt 0:00:18]} 49. Kxa4 {[%emt 0:00:15]} Kd5 {[%emt 0:00:05]} 50. Kb3 {[%emt 0:00:21]} Ke4 {[%emt 0:00:12]} 51. Bg1 {[%emt 0:00:17]} Kd5 {[%emt 0:00:16]} 52. Bh2 {[%emt 0:00:44]} e4 {[%emt 0:00:02]} 53. Bxd6 {[%emt 0:00:43]} Kxd6 {[%emt 0:00:01]} 54. Kc3 {[%emt 0:00:01]} Ke5 {[%emt 0:00:10]} 55. Kd2 {[%emt 0:00:01]} Kf4 {[%emt 0:00:09]} 56. Ke2 {[%emt 0:00:09]} e3 {[%emt 0:00:03]} 57. Ke1 {[%emt 0:00:08]} Ke5 {[%emt 0:00:04]} 58. Ke2 {[%emt 0:00:08]} Ke4 {[%emt 0:00:03]} 59. Ke1 {[%emt 0:00:08]} Kd3 {[%emt 0:00:07]} 60. Kd1 {[%emt 0:00:04]} e2+ {[%emt 0:00:04]} 61. Ke1 {[%emt 0:00:03]} Ke3 {[%emt 0:00:36]} 1/2-1/2

[Event "45th National Sub Junior 2019"]
[Site "Tiruchengode"]
[Date "2019.07.13"]
[Round "7.5"]
[White "Anadkat Kartavya"]
[Black "Soham Kamotra"]
[Result "*"]
[ECO "B12"]
[WhiteElo "1941"]
[BlackElo "2136"]
[Annotator "ChessBase"]
[PlyCount "45"]
[EventDate "2019.07.09"]
[EventCountry "IND"]
[SourceTitle "playchess.com"]
[Source "ChessBase"]
[SourceQuality "1"]
[TimeControl "5400+30"]

1. e4 {[%emt 0:00:00]} c6 {[%emt 0:00:00]} 2. d4 {[%emt 0:00:00]} d5 {[%emt 0:00:00]} 3. e5 {[%emt 0:00:00]} Bf5 {[%emt 0:00:00]} 4. h4 {[%emt 0:00:00]} h6 {[%emt 0:00:00]} 5. g4 {[%emt 0:00:12]} Be4 {[%emt 0:00:00]} 6. f3 {[%emt 0:01:11]} Bh7 {[%emt 0:00:00]} 7. Bd3 {[%emt 0:08:53]} Bxd3 {[%emt 0:00:05]} 8. Qxd3 {[%emt 0:00:04]} e6 {[%emt 0:00:03]} 9. h5 {[%emt 0:00:40]} c5 {[%emt 0:00:06]} 10. c3 {[%emt 0:00:52]} Nc6 {[%emt 0:00:05]} 11. Ne2 {[%emt 0:07:14]} Qb6 {[%emt 0:04:35]} 12. a3 {[%emt 0:00:26]} Rc8 {[%emt 0:09:58]} 13. Nd2 {[%emt 0:01:05]} Nge7 {[%emt 0:01:10]} 14. f4 {[%emt 0:05:29]} cxd4 {[%emt 0:01:47]} 15. cxd4 {[%emt 0:01:11]} Na5 {[%emt 0:05:03]} 16. Kf2 {[%emt 0:03:51]} g6 {[%emt 0:06:31]} 17. b3 {[%emt 0:09:50]} gxh5 {[%emt 0:01:00]} 18. Rxh5 {[%emt 0:00:17]} Rg8 {[%emt 0:01:36]} 19. Kf3 {[%emt 0:00:42]} Qc7 {[%emt 0:17:12]} 20. Bb2 {[%emt 0:05:11]} Qc2 {[%emt 0:00:30]} 21. Qxc2 {[%emt 0:01:35]} Rc6 {[%emt 0:50:49]} 22. Qc3 Rxc3+ {[%emt 0:00:00]} 23. Bxc3 {[%emt 0:00:38]} *

[Event "45th National Sub Junior 2019"]
[Site "Tiruchengode"]
[Date "2019.07.13"]
[Round "7.6"]
[White "Kushagra Mohan"]
[Black "Mahitosh Dey"]
[Result "1-0"]
[ECO "C60"]
[WhiteElo "2250"]
[BlackElo "1955"]
[Annotator "ChessBase"]
[PlyCount "55"]
[EventDate "2019.07.09"]
[EventCountry "IND"]
[SourceTitle "playchess.com"]
[Source "ChessBase"]
[SourceQuality "1"]
[TimeControl "5400+30"]

1. e4 {[%emt 0:00:00]} e5 {[%emt 0:00:00]} 2. Nf3 {[%emt 0:00:00]} Nc6 {[%emt 0:00:00]} 3. Bb5 {[%emt 0:00:00]} Nge7 {[%emt 0:00:00]} 4. O-O {[%emt 0:00:00]} g6 {[%emt 0:00:00]} 5. c3 {[%emt 0:00:00]} Bg7 {[%emt 0:00:00]} 6. d4 {[%emt 0:00:00]} exd4 {[%emt 0:00:02]} 7. cxd4 {[%emt 0:00:00]} d5 {[%emt 0:00:15]} 8. exd5 {[%emt 0:00:05]} Nxd5 {[%emt 0:00:04]} 9. Bg5 {[%emt 0:00:05]} Qd6 {[%emt 0:00:19]} 10. Re1+ {[%emt 0:00:04]} Be6 {[%emt 0:00:06]} 11. Nbd2 {[%emt 0:00:04]} O-O {[%emt 0:00:27]} 12. Nc4 {[%emt 0:00:30]} Qb4 {[%emt 0:00:31]} 13. Bxc6 {[%emt 0:00:03]} bxc6 {[%emt 0:10:49]} 14. Rc1 {[%emt 0:01:04]} c5 {[%emt 0:18:43]} 15. Bd2 {[%emt 0:05:28]} Qb5 {[%emt 0:04:34]} 16. a4 {[%emt 0:00:10]} Qa6 {[%emt 0:08:22]} 17. dxc5 {[%emt 0:01:27]} Rab8 {[%emt 0:00:04]} 18. b3 {[%emt 0:08:47]} Rfd8 {[%emt 0:00:22]} 19. Ng5 {[%emt 0:08:26]} Nc3 {[%emt 0:19:21]} 20. Qf3 {[%emt 0:00:03]} Bxc4 {[%emt 0:06:52]} 21. bxc4 {[%emt 0:03:02]} Qf6 {[%emt 0:01:32]} 22. Qxc3 {[%emt 0:02:12]} Qf5 {[%emt 0:01:08]} 23. Qc2 {[%emt 0:01:33]} Rd3 {[%emt 0:01:32]} 24. Re3 {[%emt 0:03:19]} Rxd2 {[%emt 0:02:10]} 25. Qxd2 {[%emt 0:00:11]} Bh6 {[%emt 0:00:23]} 26. h4 {[%emt 0:00:35]} f6 {[%emt 0:00:04]} 27. Rf3 {[%emt 0:01:41]} Qe5 {[%emt 0:00:50]} 28. Re1 {[%emt 0:00:12]} 1-0

[Event "45th National Sub Junior 2019"]
[Site "Tiruchengode"]
[Date "2019.07.13"]
[Round "7.7"]
[White "Arjun, Gupta"]
[Black "Ajay Karthikeyan"]
[Result "*"]
[ECO "A41"]
[WhiteElo "1851"]
[BlackElo "2216"]
[Annotator "ChessBase"]
[PlyCount "52"]
[EventDate "2019.07.09"]
[EventCountry "IND"]
[SourceTitle "playchess.com"]
[Source "ChessBase"]
[SourceQuality "1"]
[TimeControl "5400+30"]

1. d4 {[%emt 0:00:00]} d6 {[%emt 0:00:00]} 2. Bf4 {[%emt 0:00:00]} g6 {[%emt 0:00:00]} 3. Nf3 {[%emt 0:00:04]} Bg7 {[%emt 0:00:00]} 4. e3 {[%emt 0:00:54]} Nd7 {[%emt 0:00:00]} 5. c3 {[%emt 0:00:32]} e5 {[%emt 0:01:34]} 6. dxe5 {[%emt 0:00:21]} dxe5 {[%emt 0:00:42]} 7. Bg3 {[%emt 0:00:17]} Ne7 {[%emt 0:01:52]} 8. Bc4 {[%emt 0:00:32]} O-O {[%emt 0:00:22]} 9. O-O {[%emt 0:00:11]} Nf5 {[%emt 0:00:17]} 10. Nbd2 {[%emt 0:01:14]} Qe7 {[%emt 0:03:10]} 11. e4 {[%emt 0:01:18]} Nxg3 {[%emt 0:00:27]} 12. hxg3 {[%emt 0:00:20]} Nb6 {[%emt 0:01:26]} 13. Bb3 {[%emt 0:00:08]} Bd7 {[%emt 0:03:32]} 14. Qe2 {[%emt 0:00:22]} a5 {[%emt 0:01:31]} 15. a4 {[%emt 0:00:58]} Bh6 {[%emt 0:07:40]} 16. Nc4 {[%emt 0:01:22]} Nxc4 {[%emt 0:02:16]} 17. Bxc4 {[%emt 0:00:12]} Rfd8 {[%emt 0:12:10]} 18. Rfd1 {[%emt 0:00:59]} Bg4 {[%emt 0:15:02]} 19. Rxd8+ {[%emt 0:04:25]} Rxd8 {[%emt 0:00:02]} 20. Rd1 {[%emt 0:00:28]} Rd6 {[%emt 0:18:47]} 21. Kf1 {[%emt 0:10:25]} Kf8 {[%emt 0:02:30]} 22. Ke1 {[%emt 0:03:11]} f6 {[%emt 0:02:42]} 23. Bb3 {[%emt 0:04:22]} Be6 {[%emt 0:06:09]} 24. Bxe6 {[%emt 0:03:40]} Qxe6 {[%emt 0:00:15]} 25. Rd3 {[%emt 1:06:15]} Rd5 26. Rxd5 {[%emt 0:00:00]} Qd6 {[%emt 0:00:41]} *